bitfinex/quotes_BTCUSD_20250225
["timestamp","ask_amount","ask_price","bid_price","bid_amount"]
[1740477103565,0.08943444,88999.0,88993.0,0.5]
[1740477104361,0.2309,88998.0,88976.0,0.0114]
[1740477104593,0.08943444,88990.0,88982.0,0.5]
[1740477104794,0.08938444,88990.0,88982.0,0.5]
[1740477105846,0.532636,88989.0,88982.0,0.5]
[1740477106317,0.532636,88989.0,88973.0,0.5]
[1740477107107,0.01763164,88986.0,88982.0,5e-05]
[1740477108462,0.16,88984.0,88982.0,5e-05]
[1740477108662,0.16,88984.0,88982.0,0.0001]
[1740477108867,0.01,88983.0,88982.0,0.0001]
[1740477109287,0.01,88983.0,88982.0,0.00015]
[1740477109483,0.01813553,88983.0,88982.0,0.00015]
[1740477109915,0.01,88983.0,88982.0,0.00015]
[1740477110126,0.01,88983.0,88982.0,0.0002]
[1740477110948,0.01,88983.0,88960.0,0.0143879]
[1740477110949,0.01,88978.0,88960.0,0.0143879]
[1740477111177,0.01,88967.0,88960.0,0.0143879]
[1740477111879,0.15,88965.0,88960.0,0.0143879]
[1740477112810,0.0473,88983.0,88961.0,0.00157353]
[1740477113033,0.0473,88983.0,88976.0,0.5]
[1740477113233,0.0473,88983.0,88977.0,0.0114]
[1740477113439,0.5473,88983.0,88977.0,0.0114]
[1740477113636,0.5473,88983.0,88977.0,0.01297329]
[1740477113637,0.5,88983.0,88977.0,0.01297329]
[1740477114797,0.5,88983.0,88968.0,0.01454085]
[1740477114798,0.5,88983.0,88978.0,0.0114]
[1740477115209,0.5,88983.0,88979.0,0.00157313]
[1740477115502,0.15,88982.0,88979.0,0.00157313]
[1740477115891,0.14840999,88982.0,88979.0,0.00157313]
[1740477116236,0.14840999,88982.0,88981.0,0.56]
[1740477116442,0.14840999,88982.0,88981.0,0.5]
[1740477116572,0.14840999,88982.0,88977.0,0.0001]
[1740477116756,0.14840999,88982.0,88981.0,0.5]
[1740477118293,0.14840999,88982.0,88981.0,0.51454085]
[1740477118694,0.5,88983.0,88982.0,0.07454085]
[1740477119124,0.5,88983.0,88982.0,0.13454085]
[1740477119745,0.5,88983.0,88982.0,0.13459085]
[1740477120089,0.5,88983.0,88982.0,1.01386388]
[1740477120295,0.5,88983.0,88982.0,1.01229085]
[1740477120651,0.5,88983.0,88982.0,0.95229085]
[1740477120813,0.5,88983.0,88982.0,1.45229085]
[1740477121022,0.5,88983.0,88982.0,0.96949085]
[1740477121549,0.5,88983.0,88982.0,0.90949085]
[1740477121749,0.5,88983.0,88982.0,0.96949085]
[1740477122121,0.5,88983.0,88982.0,0.90949085]
[1740477122358,0.5,88983.0,88982.0,0.33495]
[1740477122561,0.5,88983.0,88982.0,0.95495]
[1740477122760,0.5,88983.0,88982.0,0.96949085]
[1740477122964,0.5,88983.0,88982.0,1.00330785]
[1740477125367,0.20191894,88983.0,88982.0,1.00330785]
[1740477125695,0.49999994,88983.0,88982.0,1.00330785]
[1740477126393,0.49999994,88983.0,88982.0,1.54610785]
[1740477126611,0.49999994,88983.0,88982.0,1.48610785]
[1740477126752,0.49999994,88983.0,88982.0,1.54610785]
[1740477126957,0.49999994,88983.0,88982.0,1.48610785]
[1740477127738,0.49999994,88983.0,88982.0,1.54610785]
[1740477130267,0.20497164,88983.0,88982.0,1.47470785]
[1740477130484,0.20497164,88983.0,88982.0,1.48610785]
[1740477130713,0.49999964,88983.0,88982.0,1.53555605]
[1740477130932,0.49999964,88983.0,88982.0,1.54695605]
[1740477131158,0.50169604,88983.0,88982.0,1.54695605]
[1740477131403,0.0016964,88983.0,88982.0,1.54695605]
[1740477131667,0.0016964,88983.0,88982.0,1.4010152]
[1740477131930,0.0016964,88983.0,88982.0,0.3357982]
[1740477132166,0.0016964,88983.0,88982.0,0.8243982]
[1740477132396,0.01295605,88983.0,88982.0,0.0008982]
[1740477132622,0.0016964,88983.0,88982.0,0.0008982]
[1740477133080,0.09077806,88983.0,88982.0,0.0008982]
[1740477133292,0.0794964,88983.0,88982.0,0.0008982]
[1740477133467,0.28716902,88983.0,88982.0,0.0008982]
[1740477133872,0.20936902,88983.0,88979.0,0.0001]
[1740477134070,0.23943444,88980.0,88958.0,0.66232]
[1740477134269,0.23943444,88980.0,88967.0,0.5]
[1740477134655,0.73943444,88980.0,88967.0,0.5]
[1740477135058,0.01763456,88977.0,88967.0,0.5]
[1740477135535,0.0776,88975.0,88958.0,0.16232]
[1740477135739,0.1993,88969.0,88933.0,0.54881198]
[1740477136027,0.0776,88967.0,88934.0,0.00157399]
[1740477136165,0.00157333,88966.0,88934.0,0.00157399]
[1740477136369,0.01921125,88966.0,88934.0,0.00157399]
[1740477137051,0.01763792,88966.0,88941.0,0.5]
[1740477137222,0.01763792,88966.0,88942.0,0.00157377]
[1740477137457,0.0776,88965.0,88933.0,0.54881198]
[1740477137680,0.086357,88965.0,88934.0,0.00157401]
[1740477137932,0.0776,88965.0,88939.0,0.50061398]
[1740477138153,0.0776,88965.0,88940.0,0.00167377]
[1740477138325,0.0776,88965.0,88948.0,0.5]
[1740477138829,0.07917333,88965.0,88948.0,0.5]
[1740477138964,0.07917333,88965.0,88940.0,0.0001]
[1740477138965,0.05448367,88964.0,88940.0,0.0001]
[1740477139163,0.00157333,88963.0,88940.0,0.0001]
[1740477139570,0.00718367,88962.0,88940.0,0.0001]
[1740477139897,0.15718367,88962.0,88940.0,0.0001]
[1740477140891,0.03383011,88962.0,88940.0,0.0001]
[1740477141091,0.36173011,88962.0,88940.0,0.0001]
[1740477141304,0.50867652,88961.0,88940.0,0.0001]
[1740477141711,0.05691474,88948.0,88940.0,0.0001]
[1740477141916,0.38481554,88947.0,88940.0,0.0001]
[1740477142129,0.44731136,88947.0,88940.0,0.0001]
[1740477142305,0.0376527,88941.0,88940.0,0.0001]
[1740477142509,0.01454085,88940.0,88939.0,0.00040584]
[1740477142705,0.03584938,88940.0,88939.0,0.00040584]
[1740477142938,0.3279,88941.0,88939.0,0.00040584]
[1740477143142,0.15,88940.0,88939.0,0.00040584]
[1740477143352,0.64083652,88940.0,88939.0,0.00040584]
[1740477143576,0.7282393,88940.0,88939.0,0.00040584]
[1740477144190,0.0376527,88934.0,88933.0,0.54881198]
[1740477144394,0.05892741,88934.0,88933.0,0.54881198]
[1740477145030,0.05219355,88934.0,88933.0,0.54881198]
[1740477145389,0.06717331,88934.0,88933.0,0.54881198]
[1740477145668,0.16454085,88934.0,88933.0,0.54881198]
[1740477145796,0.20219355,88934.0,88933.0,0.54881198]
[1740477146413,0.4779,88934.0,88933.0,0.54881198]
[1740477147428,0.32858752,88934.0,88933.0,0.54881198]
[1740477147633,0.00068752,88934.0,88933.0,0.54881198]
[1740477147832,0.5,88940.0,88933.0,0.54881198]
[1740477148057,0.55006875,88940.0,88933.0,0.54881198]
[1740477148282,0.5,88940.0,88933.0,0.54881198]
[1740477149538,0.15,88939.0,88933.0,0.54881198]
[1740477150142,0.00068752,88938.0,88933.0,0.54881198]
[1740477152193,0.01764548,88937.0,88933.0,0.54881198]
[1740477152491,0.00068752,88936.0,88933.0,0.54881198]
[1740477152751,0.01332517,88936.0,88933.0,0.54881198]
[1740477153708,0.00100756,88936.0,88933.0,0.54881198]
[1740477154516,0.15,88939.0,88933.0,0.54881198]
[1740477154711,0.15,88939.0,88933.0,0.54966038]
[1740477155099,0.5,88940.0,88935.0,0.06]
[1740477155305,0.01764368,88938.0,88937.0,0.0223473]
[1740477155482,0.01764368,88938.0,88933.0,0.54966038]
[1740477156237,0.01764368,88938.0,88934.0,0.048]
[1740477156717,0.01764368,88938.0,88936.0,0.5]
[1740477156896,0.01764368,88938.0,88937.0,0.3235]
[1740477159732,0.01764368,88938.0,88934.0,0.048]
[1740477159733,0.08440805,88938.0,88934.0,0.048]
[1740477159937,0.01839819,88938.0,88933.0,0.54966038]
[1740477160189,0.00075451,88937.0,88933.0,0.54966038]
[1740477160380,0.01764368,88938.0,88933.0,0.54966038]
[1740477161826,0.02704854,88937.0,88933.0,0.54966038]
[1740477163841,0.0009864,88936.0,88933.0,0.54966038]
[1740477164044,0.02704854,88937.0,88933.0,0.54966038]
[1740477164294,0.0009864,88936.0,88933.0,0.54966038]
[1740477164732,0.01764368,88938.0,88933.0,0.54966038]
[1740477164951,0.01863008,88938.0,88933.0,0.54966038]
[1740477165151,0.01764368,88938.0,88933.0,0.54966038]
[1740477167035,0.0026838,88937.0,88933.0,0.54966038]
[1740477167271,0.02657378,88936.0,88933.0,0.54966038]
[1740477167476,0.02671884,88936.0,88933.0,0.54966038]
[1740477168897,0.00113146,88936.0,88933.0,0.54966038]
[1740477171025,0.01454085,88935.0,88933.0,0.54966038]
[1740477171233,0.07454085,88934.0,88933.0,0.54966038]
[1740477171435,0.25998852,88934.0,88933.0,0.54966038]
[1740477171633,0.34663564,88934.0,88933.0,0.54966038]
[1740477171867,0.45470461,88934.0,88933.0,0.54966038]
[1740477172442,0.45479548,88934.0,88933.0,0.54966038]
[1740477174232,0.78269548,88934.0,88933.0,0.54966038]
[1740477174554,0.54035345,88934.0,88933.0,0.54966038]
[1740477174762,0.43228448,88934.0,88933.0,0.54966038]
[1740477176147,0.40563736,88934.0,88933.0,0.54966038]
[1740477176353,0.90563736,88934.0,88933.0,0.54966038]
[1740477176536,0.78760052,88934.0,88933.0,0.54966038]
[1740477177098,1.11550052,88934.0,88933.0,0.54966038]
[1740477177313,1.22356949,88934.0,88933.0,0.54966038]
[1740477177557,1.2387765,88934.0,88933.0,0.54966038]
[1740477177882,1.25021661,88934.0,88933.0,0.54966038]
[1740477178086,1.2843062,88934.0,88933.0,0.54966038]
[1740477178310,1.36881661,88934.0,88933.0,0.54966038]
[1740477178520,1.30632973,88934.0,88933.0,0.54966038]
[1740477179185,1.32276689,88934.0,88933.0,0.54966038]
[1740477179833,1.26276689,88934.0,88933.0,0.54966038]
[1740477180034,1.32276689,88934.0,88933.0,0.54966038]
[1740477180786,1.44136689,88934.0,88933.0,0.54966038]
[1740477181000,0.14115,88921.0,88901.0,0.01]
[1740477181219,0.01454085,88910.0,88901.0,0.01]
[1740477181439,0.01454085,88908.0,88901.0,0.01]
[1740477181672,0.36198365,88907.0,88901.0,0.01]
[1740477181893,0.15,88909.0,88901.0,0.01]
[1740477182122,0.15,88909.0,88902.0,0.00184808]
[1740477182330,0.01450322,88909.0,88902.0,0.00184808]
[1740477182497,0.01450322,88908.0,88902.0,0.00184808]
[1740477182886,0.01450322,88908.0,88901.0,0.01]
[1740477183290,0.15,88909.0,88901.0,0.01]
[1740477183714,0.5,88910.0,88901.0,0.01]
[1740477183715,0.3279,88908.0,88901.0,0.01]
[1740477184113,0.34555038,88908.0,88901.0,0.01]
[1740477184275,0.01765038,88908.0,88902.0,0.0019931]
[1740477184945,0.27642496,88910.0,88902.0,0.0019931]
[1740477185193,0.49999996,88910.0,88909.0,0.06]
[1740477185609,0.49999996,88910.0,88909.0,0.12197848]
[1740477185909,0.49999996,88910.0,88909.0,0.24817848]
[1740477186109,0.37189996,88910.0,88909.0,0.26271933]
[1740477186337,0.22140002,88909.0,88906.0,0.06]
[1740477186566,0.22140002,88909.0,88901.0,0.01]
[1740477186778,0.4779,88908.0,88901.0,0.01]
[1740477186995,0.50454712,88908.0,88901.0,0.01]
[1740477187190,0.05634855,88907.0,88901.0,0.01]
[1740477187390,0.4779,88908.0,88901.0,0.01]
[1740477187764,0.05634855,88907.0,88901.0,0.01]
[1740477187980,0.4779,88908.0,88901.0,0.01]
[1740477188221,0.05634855,88907.0,88901.0,0.01]
[1740477188437,0.3279,88906.0,88901.0,0.01]
[1740477188672,0.05687296,88903.0,88888.0,0.03727667]
[1740477188897,0.3279,88902.0,88888.0,0.03727667]
[1740477189146,0.22140002,88909.0,88892.0,0.06]
[1740477189376,0.22140002,88909.0,88894.0,0.06]
[1740477189611,0.22140002,88909.0,88888.0,0.03727667]
[1740477189612,0.22140002,88909.0,88888.0,0.09727667]
[1740477190042,0.22140002,88909.0,88893.0,0.0608482]
[1740477190283,0.22140002,88909.0,88898.0,0.06]
[1740477190645,0.22140002,88909.0,88904.0,0.06]
[1740477190803,0.22140002,88909.0,88895.0,0.06]
[1740477191023,0.15,88908.0,88895.0,0.06]
[1740477191478,0.15,88908.0,88893.0,0.0008482]
[1740477191818,0.05611515,88907.0,88893.0,0.0008482]
[1740477192497,0.01765157,88904.0,88893.0,0.0008482]
[1740477192704,0.01765157,88904.0,88901.0,0.000849]
[1740477194363,0.01765157,88904.0,88895.0,0.055849]
[1740477194564,0.01765157,88904.0,88893.0,0.0008482]
[1740477194742,0.15,88902.0,88893.0,0.0008482]
[1740477195169,0.15,88900.0,88893.0,0.0008482]
[1740477195892,0.15,88900.0,88895.0,5e-05]
[1740477196447,0.00012356,88899.0,88895.0,5e-05]
[1740477196642,0.15,88898.0,88893.0,0.0008482]
[1740477196871,0.15,88898.0,88880.0,0.0002]
[1740477196872,0.004151,88881.0,88880.0,0.0002]
[1740477197159,0.02664712,88880.0,88850.0,0.05]
[1740477197427,0.05601238,88877.0,88850.0,0.05]
[1740477197562,0.0180249,88876.0,88845.0,0.0008484]
[1740477197763,0.07453174,88876.0,88845.0,0.0008484]
[1740477198175,0.08943444,88871.0,88845.0,0.0008484]
[1740477198379,0.33438806,88859.0,88845.0,0.0008484]
[1740477198587,0.24537579,88858.0,88845.0,0.0008484]
[1740477198809,1.30544085,88857.0,88814.0,0.02777294]
[1740477198969,0.10794085,88855.0,88814.0,0.02777294]
[1740477199174,0.08822924,88854.0,88814.0,0.02777294]
[1740477199383,0.08943444,88848.0,88814.0,0.02777294]
[1740477199604,0.18544454,88847.0,88814.0,0.02777294]
[1740477199801,0.20118309,88847.0,88814.0,0.02777294]
[1740477200003,0.17368454,88847.0,88814.0,0.02777294]
[1740477200450,0.02749855,88846.0,88814.0,0.02782294]
[1740477200661,0.01454085,88844.0,88814.0,0.02782294]
[1740477200868,0.02368454,88843.0,88814.0,0.02787294]
[1740477201263,0.02368454,88843.0,88814.0,0.02792294]
[1740477201445,0.02368454,88843.0,88814.0,0.08792294]
[1740477201945,0.01766335,88836.0,88821.0,0.06]
[1740477202146,0.01766335,88836.0,88814.0,0.02792294]
[1740477202147,0.01766335,88836.0,88831.0,0.06]
[1740477202352,0.01766335,88836.0,88814.0,0.10702294]
[1740477202557,0.01766335,88836.0,88830.0,0.06]
[1740477203312,0.01766335,88836.0,88832.0,0.06]
[1740477204053,0.15,88835.0,88833.0,0.0789]
[1740477204253,0.15,88835.0,88834.0,0.06]
[1740477205422,0.23943444,88835.0,88830.0,0.0001]
[1740477205809,0.15,88835.0,88830.0,0.0001]
[1740477206012,0.00057856,88834.0,88830.0,0.0001]
[1740477206252,0.15,88835.0,88830.0,0.0001]
[1740477206451,0.45256006,88836.0,88834.0,5e-05]
[1740477206767,0.32847856,88835.0,88834.0,5e-05]
[1740477206942,0.35629235,88835.0,88834.0,5e-05]
[1740477207150,0.35629235,88835.0,88814.0,0.02877244]
[1740477207355,0.08943444,88831.0,88814.0,0.02877244]
[1740477207557,0.08943444,88820.0,88799.0,0.001]
[1740477207760,0.10061779,88820.0,88799.0,0.001]
[1740477207939,0.02781379,88819.0,88799.0,0.001]
[1740477208144,0.05531234,88819.0,88799.0,0.001]
[1740477208344,0.06237107,88818.0,88799.0,0.001]
[1740477208720,0.15,88816.0,88800.0,1.06599022]
[1740477208831,0.15,88814.0,88800.0,1.06599022]
[1740477209034,0.01454085,88811.0,88800.0,0.76399022]
[1740477209322,0.04474858,88810.0,88800.0,0.46199022]
[1740477209600,0.01118335,88811.0,88800.0,0.46199022]
[1740477209601,0.3279,88809.0,88800.0,0.46199022]
[1740477209805,0.15,88808.0,88800.0,0.46199022]
[1740477210011,0.4779,88808.0,88782.0,0.0133891]
[1740477210202,0.03487652,88807.0,88782.0,0.0133891]
[1740477210411,0.35571379,88806.0,88782.0,0.0133891]
[1740477211046,0.16549837,88805.0,88782.0,0.0133891]
[1740477211183,0.15,88805.0,88782.0,0.0133891]
[1740477211367,0.35571379,88806.0,88782.0,0.0133891]
[1740477211578,0.3279,88806.0,88782.0,0.0133891]
[1740477211803,0.15,88805.0,88782.0,0.0133891]
[1740477212021,0.15,88805.0,88791.0,5e-05]
[1740477212226,0.15,88805.0,88792.0,0.0829]
[1740477212667,0.51118335,88811.0,88798.0,0.06]
[1740477212892,0.48135324,88811.0,88805.0,0.06]
[1740477213022,0.48135324,88811.0,88806.0,0.06]
[1740477213223,0.49999924,88811.0,88810.0,0.12]
[1740477213989,0.51766613,88811.0,88810.0,0.119]
[1740477214133,0.51766613,88811.0,88810.0,0.2496]
[1740477214337,0.49999924,88811.0,88810.0,0.2496]
[1740477215112,0.49999924,88811.0,88810.0,0.1306]
[1740477215315,0.64999924,88811.0,88810.0,0.1906]
[1740477216282,0.64999924,88811.0,88810.0,0.1306]
[1740477216459,0.64999924,88811.0,88810.0,0.13065]
[1740477217570,0.24075002,88810.0,88806.0,0.0001]
[1740477218444,0.24075002,88810.0,88809.0,0.059]
[1740477219512,0.24075002,88810.0,88809.0,0.119]
[1740477221351,0.24075002,88810.0,88809.0,0.24355]
[1740477222751,0.24075002,88810.0,88809.0,0.56705]
[1740477222752,0.09075002,88810.0,88809.0,0.56705]
[1740477223173,0.50169904,88811.0,88810.0,0.1385]
[1740477223311,0.50169904,88811.0,88810.0,0.1975]
[1740477224143,0.37359904,88811.0,88810.0,0.21204085]
[1740477224344,0.37359904,88811.0,88810.0,1.07834085]
[1740477224550,0.32359904,88811.0,88810.0,1.07834085]
[1740477224765,0.27179904,88811.0,88810.0,1.18640982]
[1740477225168,0.50169904,88811.0,88810.0,1.17640982]
[1740477225399,0.50169904,88811.0,88810.0,1.06834085]
[1740477225991,0.49781043,88811.0,88810.0,1.06834085]
[1740477226182,0.41618148,88811.0,88810.0,1.06834085]
[1740477226404,0.15,88860.0,88851.0,0.05]
[1740477226579,0.15,88860.0,88851.0,0.109]
[1740477226776,0.15,88856.0,88851.0,0.109]
[1740477226979,0.01765863,88852.0,88851.0,0.109]
[1740477228074,0.5,88857.0,88856.0,0.109]
[1740477228280,0.0793,88886.0,88856.0,0.109]
[1740477228281,0.09876534,88897.0,88884.0,0.059]
[1740477229239,0.15,88896.0,88884.0,0.059]
[1740477230366,0.15,88891.0,88883.0,0.05]
[1740477230581,0.0497998,88885.0,88883.0,0.05]
[1740477231424,0.0497998,88885.0,88863.0,0.0118]
[1740477231425,0.0016998,88885.0,88884.0,0.19843444]
[1740477231651,0.0016998,88885.0,88884.0,0.21827788]
[1740477232122,0.16257636,88892.0,88891.0,0.07354085]
[1740477232326,0.001699,88904.0,88899.0,0.68354085]
[1740477232519,0.001699,88904.0,88899.0,0.62084]
[1740477232725,0.001699,88904.0,88899.0,0.109]
[1740477233719,0.001699,88904.0,88899.0,0.609]
[1740477233921,0.001699,88904.0,88899.0,0.68354085]
[1740477234148,0.001699,88904.0,88899.0,0.609]
[1740477234343,0.001699,88904.0,88899.0,0.059]
[1740477234519,0.001699,88904.0,88899.0,0.57674]
[1740477234720,0.001699,88904.0,88899.0,0.07674]
[1740477235126,0.001699,88904.0,88899.0,0.07831452]
[1740477235396,0.001699,88904.0,88899.0,0.07674]
[1740477235902,0.001699,88904.0,88899.0,0.57674]
[1740477236294,0.001699,88904.0,88899.0,0.59128085]
[1740477237257,0.001699,88904.0,88899.0,0.65128085]
[1740477237454,0.001699,88904.0,88899.0,0.71128085]
[1740477237800,0.49277966,88908.0,88907.0,0.179]
[1740477237955,0.001698,88909.0,88908.0,0.69354085]
[1740477239661,0.001698,88909.0,88908.0,0.63354085]
[1740477239867,0.01285574,88909.0,88908.0,0.69354085]
[1740477240404,0.01285574,88909.0,88908.0,0.63354085]
[1740477240547,0.01285574,88909.0,88908.0,0.69354085]
[1740477240748,0.01285574,88909.0,88908.0,0.76483034]
[1740477240954,0.5,88918.0,88917.0,0.69354085]
[1740477241684,0.5,88918.0,88917.0,0.63354085]
[1740477241888,0.5,88918.0,88917.0,0.75689494]
[1740477242519,0.5,88918.0,88917.0,0.63689494]
[1740477242681,0.5,88918.0,88917.0,0.75689494]
[1740477243929,0.43943621,88918.0,88917.0,0.75689494]
[1740477244129,0.0778,88988.0,88935.0,0.679]
[1740477244330,0.0778,88988.0,88964.0,0.559]
[1740477244557,0.5016998,88974.0,88964.0,0.559]
[1740477245115,0.5016998,88974.0,88964.0,0.63354085]
[1740477245379,0.5016998,88974.0,88964.0,0.69354085]
[1740477245533,0.5016998,88974.0,88964.0,0.76289493]
[1740477246654,0.5016998,88974.0,88964.0,0.70289493]
[1740477246982,0.5016998,88974.0,88964.0,0.77473493]
[1740477247491,0.5016998,88974.0,88964.0,0.76289493]
[1740477247689,0.5016998,88974.0,88964.0,0.77473493]
[1740477247923,0.46954314,88974.0,88973.0,0.679]
[1740477248140,0.43568968,88974.0,88973.0,0.72248091]
[1740477248340,0.40183622,88974.0,88973.0,0.73432091]
[1740477248676,0.36798276,88974.0,88973.0,0.73432091]
[1740477248872,0.0016998,88989.0,88980.0,0.179]
[1740477249074,0.0016998,88989.0,88980.0,0.19511366]
[1740477249280,0.16587,88985.0,88980.0,0.25846775]
[1740477249478,0.16587,88985.0,88980.0,0.76873494]
[1740477249877,0.16587,88985.0,88980.0,0.75689494]
[1740477250075,0.16587,88985.0,88980.0,0.70873494]
[1740477250298,0.16587,88985.0,88980.0,0.14973494]
[1740477250516,0.5,88985.0,88980.0,0.57354085]
[1740477250757,0.5,88985.0,88980.0,0.57084]
[1740477251029,0.5,88985.0,88980.0,0.07084]
[1740477251233,0.51763018,88985.0,88980.0,0.059]
[1740477251445,0.15,88984.0,88980.0,0.059]
[1740477251669,0.0785,88982.0,88976.0,0.059]
[1740477251827,0.13651998,88982.0,88972.0,0.059]
[1740477252000,0.0477,88981.0,88977.0,0.059]
[1740477252585,0.0477,88981.0,88972.0,0.059]
[1740477252961,0.0477,88981.0,88931.0,0.06]
[1740477252962,0.0825,88980.0,88939.0,0.01184]
[1740477253180,0.0825,88980.0,88944.0,0.5]
[1740477253345,0.0825,88980.0,88945.0,0.00157363]
[1740477253546,0.0825,88980.0,88954.0,0.5]
[1740477253726,0.0825,88980.0,88963.0,0.5]
[1740477253932,0.2325,88980.0,88949.0,0.5]
[1740477254110,0.2325,88980.0,88961.0,0.5]
[1740477254313,0.2325,88980.0,88962.0,0.00157345]
[1740477254600,0.2325,88980.0,88963.0,0.05015735]
[1740477254804,0.2325,88980.0,88964.0,0.00157334]
[1740477255738,0.2325,88980.0,88961.0,0.5]
[1740477256152,0.01763403,88976.0,88956.0,0.01184]
[1740477256851,0.00638403,88976.0,88956.0,0.01184]
[1740477257040,0.02882818,88975.0,88956.0,0.01184]
[1740477257238,0.0825,88980.0,88956.0,0.01184]
[1740477258925,0.5,88975.0,88965.0,0.5]
[1740477259215,0.5,88975.0,88966.0,0.00157338]
[1740477259521,0.5,88975.0,88965.0,0.5]
[1740477259681,0.5,88975.0,88966.0,0.05]
[1740477260067,0.19507745,88975.0,88966.0,0.05]
[1740477260288,0.19507745,88975.0,88941.0,0.06]
[1740477260289,0.19507745,88975.0,88950.0,0.5]
[1740477260518,0.01763487,88973.0,88951.0,0.01341346]
[1740477260726,0.01763487,88973.0,88926.0,0.033836]
[1740477260727,0.08943444,88956.0,88934.0,0.5]
[1740477260953,0.1279,88954.0,88914.0,0.5]
[1740477261159,0.1279,88954.0,88925.0,0.5]
[1740477261372,0.1279,88954.0,88949.0,0.5]
[1740477261587,0.0453,88954.0,88949.0,0.5]
[1740477262639,0.0453,88954.0,88933.0,0.01184]
[1740477263029,0.0453,88954.0,88939.0,0.5]
[1740477263230,0.0453,88954.0,88940.0,0.05291519]
[1740477264534,0.0453,88954.0,88939.0,0.5]
[1740477264734,0.00157346,88953.0,88929.0,0.5118]
[1740477264930,0.0453,88954.0,88929.0,0.5118]
[1740477265186,0.0453,88954.0,88939.0,0.5]
[1740477265388,0.0453,88954.0,88941.0,0.01454085]
[1740477265540,0.0453,88954.0,88948.0,0.5]
[1740477265732,0.0453,88954.0,88949.0,0.00157372]
[1740477266831,0.0453,88954.0,88949.0,0.0008483]
[1740477267008,0.0453,88954.0,88949.0,0.00163523]
[1740477267710,0.0453,88954.0,88949.0,0.0008483]
[1740477268520,0.0453,88954.0,88950.0,0.05087191]
[1740477268784,0.0453,88954.0,88949.0,0.0008483]
[1740477272956,0.5,88961.0,88953.0,0.5]
[1740477273163,0.5,88961.0,88954.0,0.00078676]
[1740477274471,0.5,88961.0,88949.0,0.0008483]
[1740477274675,0.5,88961.0,88957.0,0.01454085]
[1740477274889,0.5,88961.0,88959.0,0.01454085]
[1740477276583,0.5,88961.0,88958.0,0.05145409]
[1740477276584,0.5,88961.0,88960.0,0.5]
[1740477277465,0.5,88961.0,88958.0,0.0118]
[1740477277912,0.5,88961.0,88958.0,0.00183361]
[1740477278294,0.0455,88960.0,88949.0,0.0008483]
[1740477278652,0.0772,88959.0,88949.0,0.0008483]
[1740477278852,0.01764119,88958.0,88949.0,0.0008483]
[1740477281444,0.01764119,88958.0,88936.0,0.01454085]
[1740477281616,0.01764119,88958.0,88937.0,0.05841892]
[1740477283477,0.01764119,88958.0,88932.0,0.5]
[1740477283635,0.01764119,88958.0,88930.0,0.5]
[1740477283834,0.2272,88959.0,88926.0,0.01172]
[1740477284061,0.08943444,88957.0,88922.0,0.5]
[1740477284236,0.08943444,88957.0,88918.0,0.01172]
[1740477284237,0.045,88955.0,88918.0,0.01172]
[1740477284616,0.2279,88953.0,88919.0,0.051172]
[1740477284827,0.00196753,88952.0,88919.0,0.051172]
[1740477284996,0.00196753,88952.0,88914.0,0.5]
[1740477285155,0.0459,88951.0,88914.0,0.5]
[1740477285359,0.0773,88949.0,88914.0,0.5]
[1740477285580,0.00196768,88948.0,88914.0,0.5]
[1740477285783,0.24140212,88948.0,88918.0,5e-05]
[1740477285984,0.15,88935.0,88918.0,5e-05]
[1740477286159,0.001968,88934.0,88918.0,5e-05]
[1740477286503,0.00832414,88912.0,88873.0,0.5]
[1740477286713,0.15,88909.0,88873.0,0.01168]
[1740477286862,0.00196855,88908.0,88873.0,0.01168]
[1740477287206,0.02820927,88907.0,88874.0,0.05133763]
[1740477287665,0.00196855,88908.0,88874.0,0.05133763]
[1740477288262,0.01765035,88900.0,88874.0,0.05138763]
[1740477288827,0.01765035,88900.0,88874.0,0.05143763]
[1740477289444,0.01765035,88900.0,88874.0,0.05148763]
[1740477290124,0.01765035,88900.0,88874.0,0.05153763]
[1740477290346,0.15,88899.0,88875.0,0.05640256]
[1740477290552,0.51765035,88900.0,88888.0,0.5]
[1740477290725,0.5,88900.0,88888.0,0.5]
[1740477290885,0.15,88899.0,88880.0,0.5]
[1740477291285,0.15,88899.0,88874.0,0.5011482]
[1740477291483,0.065,88898.0,88874.0,0.5011482]
[1740477291686,0.065,88898.0,88874.0,0.5011982]
[1740477292109,0.15,88899.0,88875.0,0.01454085]
[1740477292270,0.15,88899.0,88885.0,0.5]
[1740477292471,0.15,88899.0,88886.0,0.3235]
[1740477292670,0.5,88900.0,88886.0,0.3235]
[1740477293816,0.15,88899.0,88886.0,0.3235]
[1740477294016,0.15,88899.0,88886.0,0.43156897]
[1740477294422,0.5,88900.0,88886.0,0.43156897]
[1740477295052,0.5,88900.0,88894.0,0.5]
[1740477295195,0.5,88900.0,88895.0,0.3235]
[1740477296530,0.5,88900.0,88896.0,0.01454085]
[1740477296731,0.5,88900.0,88898.0,0.01454085]
[1740477297139,0.5,88900.0,88899.0,0.55734085]
[1740477299487,0.5,88900.0,88899.0,0.56890085]
[1740477299821,0.49999999,88900.0,88899.0,0.56890085]
[1740477300419,0.49999999,88900.0,88899.0,0.5428]
[1740477300829,0.49999999,88900.0,88899.0,0.66540982]
[1740477301927,0.49999999,88900.0,88899.0,1.06042982]
[1740477302169,0.49999999,88900.0,88899.0,1.50042982]
[1740477302587,0.49999999,88900.0,88899.0,1.00042982]
[1740477302796,0.49999999,88900.0,88899.0,0.8235]
[1740477303642,0.49999999,88900.0,88899.0,0.83804085]
[1740477304341,0.49999999,88900.0,88899.0,0.83888945]
[1740477304952,0.69819999,88900.0,88899.0,0.20494677]
[1740477305117,0.15,88899.0,88888.0,0.5428]
[1740477305312,0.24377849,88899.0,88875.0,0.3235]
[1740477305937,0.24377849,88899.0,88874.0,0.0014982]
[1740477305938,0.00196852,88898.0,88874.0,0.0014982]
[1740477306171,0.1982,88888.0,88866.0,0.31220113]
[1740477306405,0.08943444,88880.0,88857.0,0.31220113]